bitfinex/quotes_BTCUSD_20241003
["timestamp","ask_amount","ask_price","bid_price","bid_amount"]
[1727921048351,0.72465104,61150.0,61140.0,0.001636]
[1727921048594,0.33593561,61141.0,61140.0,0.001636]
[1727921049213,0.34322246,61141.0,61140.0,0.001636]
[1727921049931,0.34322246,61141.0,61140.0,0.004636]
[1727921050675,0.36622246,61141.0,61140.0,0.004636]
[1727921051144,0.39186967,61141.0,61140.0,0.009636]
[1727921051358,0.39186967,61141.0,61140.0,0.004636]
[1727921051583,0.71198454,61141.0,61140.0,0.004636]
[1727921051803,0.81508454,61141.0,61140.0,0.002636]
[1727921052026,0.288559,61140.0,61139.0,0.001636]
[1727921052268,0.43518915,61140.0,61139.0,0.001636]
[1727921052491,0.43518915,61140.0,61132.0,0.000818]
[1727921052492,0.263572,61135.0,61132.0,0.000818]
[1727921052700,0.286572,61135.0,61132.0,0.000818]
[1727921053166,0.288572,61135.0,61132.0,0.000818]
[1727921053633,0.295572,61135.0,61134.0,0.002636]
[1727921053859,0.50823207,61135.0,61134.0,0.002636]
[1727921054549,0.45517038,61135.0,61134.0,0.002636]
[1727921054842,0.45917038,61135.0,61134.0,0.002636]
[1727921058393,0.276572,61135.0,61134.0,0.002636]
[1727921058623,0.44695161,61135.0,61134.0,0.002636]
[1727921061372,0.47260216,61135.0,61134.0,0.002636]
[1727921061595,0.47423816,61135.0,61134.0,0.002636]
[1727921062917,0.30185855,61135.0,61134.0,0.002636]
[1727921064536,0.47423816,61135.0,61134.0,0.002636]
[1727921065424,0.81440218,61135.0,61134.0,0.002636]
[1727921066088,0.81640218,61135.0,61134.0,0.002636]
[1727921066542,0.49723816,61135.0,61134.0,0.002636]
[1727921066765,0.47423816,61135.0,61134.0,0.002636]
[1727921068348,0.46723816,61135.0,61134.0,0.001636]
[1727921068564,0.46323816,61135.0,61134.0,0.001636]
[1727921068787,0.44358761,61135.0,61134.0,0.002636]
[1727921069006,0.44658761,61135.0,61134.0,0.002636]
[1727921069227,0.44358761,61135.0,61134.0,0.002636]
[1727921069447,0.43758761,61135.0,61134.0,0.001636]
[1727921070665,0.44558761,61135.0,61134.0,0.001636]
[1727921070882,0.44158761,61135.0,61134.0,0.001636]
[1727921071100,0.44458761,61135.0,61134.0,0.001636]
[1727921071317,0.44058761,61135.0,61134.0,0.001636]
[1727921071530,0.44258761,61135.0,61134.0,0.002636]
[1727921071748,0.44658761,61135.0,61134.0,0.002636]
[1727921071967,0.46723746,61135.0,61134.0,0.001636]
[1727921072742,0.46323746,61135.0,61134.0,0.001636]
[1727921072984,0.46923746,61135.0,61134.0,0.002636]
[1727921073979,0.46923746,61135.0,61134.0,0.001636]
[1727921073980,0.46723746,61135.0,61134.0,0.001636]
[1727921074227,0.46323746,61135.0,61134.0,0.001636]
[1727921074472,0.44258761,61135.0,61134.0,0.002636]
[1727921074720,0.44558761,61135.0,61134.0,0.002636]
[1727921074963,0.44058761,61135.0,61134.0,0.001636]
[1727921075211,0.47123754,61135.0,61134.0,0.002636]
[1727921075460,0.47323754,61135.0,61134.0,0.002636]
[1727921075707,0.47123754,61135.0,61134.0,0.002636]
[1727921080244,0.29885793,61135.0,61134.0,0.0110814]
[1727921080477,0.29885793,61135.0,61134.0,0.002636]
[1727921084313,0.273208,61135.0,61134.0,0.002636]
[1727921084757,0.29885768,61135.0,61134.0,0.002636]
[1727921085746,0.43891337,61135.0,61134.0,0.002636]
[1727921085997,0.34155696,61135.0,61134.0,0.002636]
[1727921086276,0.44145648,61135.0,61134.0,0.002636]
[1727921086527,0.46525248,61135.0,61134.0,0.002636]
[1727921087594,0.34355696,61135.0,61134.0,0.002636]
[1727921088777,0.31790728,61135.0,61134.0,0.002636]
[1727921090632,0.4639419,61135.0,61134.0,0.002636]
[1727921091524,0.31790728,61135.0,61134.0,0.002636]
[1727921091741,0.34355843,61135.0,61134.0,0.002636]
[1727921092169,0.49065374,61135.0,61134.0,0.002636]
[1727921092609,0.34355843,61135.0,61134.0,0.002636]
[1727921094372,0.34155843,61135.0,61134.0,0.002636]
[1727921094598,0.32185915,61135.0,61134.0,0.002636]
[1727921095055,0.29885915,61135.0,61134.0,0.002636]
[1727921095351,0.273208,61135.0,61134.0,0.078436]
[1727921095820,0.273208,61135.0,61134.0,0.002636]
[1727921096043,0.42039902,61135.0,61134.0,0.002636]
[1727921096492,0.44339902,61135.0,61134.0,0.002636]
[1727921096721,0.42039902,61135.0,61134.0,0.002636]
[1727921096968,0.273208,61135.0,61134.0,0.002636]
[1727921097249,0.42045581,61135.0,61134.0,0.002636]
[1727921098390,0.44610563,61135.0,61134.0,0.002636]
[1727921098616,0.48504453,61135.0,61134.0,0.002636]
[1727921098837,0.32185782,61135.0,61134.0,0.002636]
[1727921099338,0.41905782,61135.0,61134.0,0.002636]
[1727921101482,0.32185782,61135.0,61134.0,0.002636]
[1727921101713,0.29885782,61135.0,61134.0,0.080136]
[1727921104731,0.19885782,61135.0,61134.0,0.080136]
[1727921104966,0.29699466,61135.0,61134.0,0.0973014]
[1727921105411,0.2724511,61135.0,61134.0,0.0973014]
[1727921105897,0.2644511,61135.0,61134.0,0.079136]
[1727921106136,0.2644511,61135.0,61134.0,0.082136]
[1727921106783,0.19085782,61135.0,61134.0,0.082136]
[1727921107018,0.26442023,61135.0,61134.0,0.082136]
[1727921107237,0.19085782,61135.0,61134.0,0.082136]
[1727921107473,0.2644144,61135.0,61134.0,0.079136]
[1727921107890,0.19085782,61135.0,61134.0,0.084136]
[1727921108107,0.2644156,61135.0,61134.0,0.084136]
[1727921108538,0.19085782,61135.0,61134.0,0.084136]
[1727921109429,0.26440486,61135.0,61134.0,0.1017014]
[1727921109649,0.23989011,61135.0,61134.0,0.1017014]
[1727921109870,0.02728582,61135.0,61134.0,0.345311]
[1727921110105,0.02728582,61135.0,61134.0,0.181736]
[1727921110106,0.001636,61135.0,61134.0,0.181736]
[1727921110545,0.001636,61135.0,61134.0,0.177736]
[1727921110837,0.001636,61135.0,61134.0,0.176736]
[1727921111057,0.001636,61135.0,61134.0,0.180736]
[1727921111283,0.001636,61135.0,61134.0,0.177736]
[1727921111507,0.165208,61135.0,61134.0,0.188736]
[1727921111732,0.19185326,61135.0,61134.0,0.187736]
[1727921112172,0.19285326,61135.0,61134.0,0.195736]
[1727921112399,0.02928126,61135.0,61134.0,0.195736]
[1727921112631,0.02928126,61135.0,61134.0,0.228546]
[1727921113065,0.19285326,61135.0,61134.0,0.228546]
[1727921113293,0.02928126,61135.0,61134.0,0.228546]
[1727921115660,0.19285326,61135.0,61134.0,0.228546]
[1727921117410,0.167208,61135.0,61134.0,0.228546]
[1727921119703,0.167208,61135.0,61134.0,0.195736]
[1727921120579,0.19285371,61135.0,61134.0,0.195736]
[1727921123738,0.19285371,61135.0,61134.0,0.098136]
[1727921123966,0.19285371,61135.0,61134.0,0.020636]
[1727921128534,0.37285371,61135.0,61134.0,0.020636]
[1727921128998,0.39614024,61135.0,61134.0,0.020636]
[1727921129454,0.346208,61135.0,61134.0,0.009636]
[1727921129679,0.346208,61135.0,61134.0,0.012636]
[1727921129905,0.39512096,61135.0,61134.0,0.012636]
[1727921130384,0.31262096,61135.0,61134.0,0.004636]
[1727921130605,0.31262096,61135.0,61134.0,0.005636]
[1727921131095,0.31262096,61135.0,61134.0,0.001636]
[1727921131545,0.31262096,61135.0,61134.0,0.005636]
[1727921131788,0.32290349,61135.0,61134.0,0.005636]
[1727921132239,0.34855267,61135.0,61134.0,0.005636]
[1727921133199,0.25005267,61135.0,61134.0,0.005636]
[1727921133455,0.27453807,61135.0,61134.0,0.005636]
[1727921134137,0.24888889,61135.0,61134.0,0.005636]
[1727921135058,0.17549053,61135.0,61134.0,0.005636]
[1727921135282,0.17549053,61135.0,61134.0,0.0145514]
[1727921136424,0.17549053,61135.0,61134.0,0.005636]
[1727921138255,0.17549053,61135.0,61134.0,0.100536]
[1727921138946,0.17549053,61135.0,61134.0,0.182836]
[1727921139164,0.00883706,61135.0,61134.0,0.182836]
[1727921139868,0.17240906,61135.0,61134.0,0.182836]
[1727921140113,0.17240906,61135.0,61134.0,0.2012014]
[1727921141250,0.19805547,61135.0,61134.0,0.2002014]
[1727921141468,0.19805547,61135.0,61134.0,0.2032014]
[1727921141802,0.19805547,61135.0,61134.0,0.2002014]
[1727921142032,0.19805547,61135.0,61134.0,0.2062014]
[1727921142727,0.19805547,61135.0,61134.0,0.2002014]
[1727921142945,0.19805547,61135.0,61134.0,0.1972014]
[1727921143490,0.19805547,61135.0,61134.0,0.2022014]
[1727921143918,0.19805547,61135.0,61134.0,0.2092014]
[1727921144315,0.03448347,61135.0,61134.0,0.2092014]
[1727921144888,0.19805547,61135.0,61134.0,0.2092014]
[1727921145523,0.19805547,61135.0,61134.0,0.013636]
[1727921145721,0.03448347,61135.0,61134.0,0.013636]
[1727921146130,0.00883706,61135.0,61134.0,0.013636]
[1727921146560,0.00883706,61135.0,61134.0,0.255511]
[1727921146995,0.001636,61135.0,61134.0,0.380621]
[1727921147198,0.00883735,61135.0,61134.0,0.380621]
[1727921147411,0.001636,61135.0,61134.0,0.380621]
[1727921147829,0.001636,61135.0,61134.0,0.373621]
[1727921148033,0.001636,61135.0,61134.0,0.386621]
[1727921148236,0.002636,61135.0,61134.0,0.386621]
[1727921148680,0.002636,61135.0,61134.0,0.381621]
[1727921149116,0.003636,61135.0,61134.0,0.55380771]
[1727921150255,0.002636,61135.0,61134.0,0.54480771]
[1727921150667,0.002636,61135.0,61134.0,0.55880771]
[1727921150831,0.001636,61135.0,61134.0,0.54580771]
[1727921151036,0.001636,61135.0,61134.0,0.55980771]
[1727921151460,0.001636,61135.0,61134.0,0.54580771]
[1727921151629,0.24491195,61149.0,61134.0,0.66680771]
[1727921151832,0.24491195,61149.0,61148.0,0.342537]
[1727921152246,0.163527,61152.0,61148.0,0.179]
[1727921152454,0.163527,61152.0,61148.0,0.342537]
[1727921153581,0.18916602,61152.0,61148.0,0.344537]
[1727921154274,0.18916602,61152.0,61148.0,0.352537]
[1727921154466,0.163527,61152.0,61148.0,0.344537]
[1727921154681,0.163525,61153.0,61149.0,0.163534]
[1727921154895,0.32704,61155.0,61148.0,0.186]
[1727921155118,0.163528,61152.0,61148.0,0.186]
[1727921155961,0.163528,61152.0,61148.0,0.184]
[1727921156179,0.163528,61152.0,61149.0,0.001]
[1727921156602,0.163528,61152.0,61148.0,0.347537]
[1727921157072,0.163528,61152.0,61148.0,0.349537]
[1727921157275,0.18916675,61152.0,61148.0,0.349537]
[1727921158280,0.163528,61152.0,61148.0,0.349537]
[1727921158497,0.327048,61153.0,61148.0,0.186]
[1727921158765,0.16353,61151.0,61148.0,0.186]
[1727921159388,0.32706,61151.0,61148.0,0.184]
[1727921159586,0.163529,61152.0,61148.0,0.348537]
[1727921159832,0.327036,61156.0,61148.0,0.18508]
[1727921160050,0.163517,61156.0,61148.0,0.18508]
[1727921160273,0.16352,61155.0,61148.0,0.18408]
[1727921160486,0.16352,61155.0,61152.0,0.03281]
[1727921160707,0.02563797,61154.0,61152.0,0.03281]
[1727921161159,0.02563797,61154.0,61153.0,0.241424]
[1727921161389,0.02563797,61154.0,61153.0,0.52952071]
[1727921161633,0.001636,61169.0,61153.0,0.47099671]
[1727921161856,0.001636,61169.0,61168.0,0.50386361]
[1727921162049,0.001636,61169.0,61168.0,0.331484]
[1727921162323,0.001636,61169.0,61164.0,0.03281]
[1727921162548,0.163492,61165.0,61164.0,0.03281]
[1727921162995,0.16349,61166.0,61164.0,0.03281]
[1727921163223,0.001636,61169.0,61164.0,0.03281]
[1727921163440,0.165117,61169.0,61168.0,0.004]
[1727921163863,0.18775835,61169.0,61158.0,0.44123195]
[1727921164074,0.18775835,61169.0,61158.0,0.27772195]
[1727921164075,0.163503,61161.0,61158.0,0.27772195]
[1727921164285,0.32699,61164.0,61158.0,0.27772195]
[1727921164496,0.163504,61161.0,61158.0,0.27772195]
[1727921164959,0.01372505,61160.0,61158.0,0.03281]
[1727921165172,0.17723005,61160.0,61158.0,0.03281]
[1727921165617,0.17723005,61160.0,61158.0,0.03481]
[1727921166037,0.17723005,61160.0,61158.0,0.03781]
[1727921166462,0.163508,61159.0,61158.0,0.03781]
[1727921166906,0.01371306,61159.0,61158.0,0.03781]
[1727921167362,0.01371306,61159.0,61158.0,0.04081]
[1727921167574,0.65398,61164.0,61158.0,0.03781]
[1727921167575,0.32699,61164.0,61158.0,0.03781]
[1727921167783,0.01371306,61159.0,61158.0,0.04181]
[1727921167998,0.326999,61163.0,61158.0,0.04181]
[1727921168211,0.01371306,61159.0,61158.0,0.04181]
[1727921168460,0.163506,61160.0,61158.0,0.03681]
[1727921168684,0.01371306,61159.0,61158.0,0.03881]
[1727921169582,0.01371306,61159.0,61158.0,0.03281]
[1727921169761,0.01371306,61159.0,61158.0,0.03781]
[1727921170195,0.01371306,61159.0,61158.0,0.03281]
[1727921170418,0.01371306,61159.0,61158.0,0.20032]
[1727921170639,0.01371306,61159.0,61158.0,0.27692]
[1727921170861,0.165117,61169.0,61165.0,0.16349]
[1727921171067,0.24491195,61166.0,61165.0,0.16349]
[1727921171311,0.01413017,61168.0,61165.0,0.16349]
[1727921171513,0.01413017,61168.0,61163.0,0.326989]
[1727921171748,0.01413017,61168.0,61167.0,0.163486]
[1727921171955,0.001636,61169.0,61168.0,0.03281]
[1727921172229,0.001636,61169.0,61168.0,0.274194]
[1727921172439,0.01580363,61169.0,61168.0,0.274194]
[1727921172650,0.01759774,61169.0,61168.0,0.274194]
[1727921172853,0.01759774,61169.0,61168.0,0.11071]
[1727921173097,0.01759774,61169.0,61168.0,0.11371]
[1727921174384,0.01759774,61169.0,61168.0,0.277194]
[1727921174594,0.01759774,61169.0,61168.0,0.281194]
[1727921174827,0.001636,61169.0,61168.0,0.281194]
[1727921175043,0.001636,61169.0,61168.0,0.290194]
[1727921175264,0.001636,61169.0,61168.0,0.283194]
[1727921175540,0.001636,61169.0,61168.0,0.274194]
[1727921175738,0.001636,61169.0,61168.0,0.284194]
[1727921176185,0.001636,61169.0,61168.0,0.282194]
[1727921176399,0.001636,61169.0,61168.0,0.292194]
[1727921178351,0.001636,61169.0,61168.0,0.04081]
[1727921178574,0.001636,61169.0,61168.0,0.196294]
[1727921178823,0.01760043,61169.0,61168.0,0.214294]
[1727921179015,0.001636,61169.0,61168.0,0.206294]
[1727921179222,0.001636,61169.0,61168.0,0.196294]
[1727921179446,0.001636,61169.0,61168.0,0.219294]
[1727921180990,0.00150521,61169.0,61168.0,0.219294]
[1727921182098,0.00150521,61169.0,61168.0,0.05581]
[1727921182542,0.18095164,61169.0,61168.0,0.05581]
[1727921183248,0.18095164,61169.0,61168.0,0.023]
[1727921184128,0.01747064,61169.0,61160.0,0.24491195]
[1727921184350,0.163502,61161.0,61160.0,0.24491195]
[1727921184789,0.01279331,61161.0,61158.0,0.03281]
[1727921185214,0.163508,61159.0,61158.0,0.03281]
[1727921185671,0.17629801,61159.0,61158.0,0.03281]
[1727921187542,0.01279001,61159.0,61154.0,0.000818]
[1727921187751,0.163508,61159.0,61158.0,0.007]
[1727921187964,0.163508,61159.0,61158.0,0.012]
[1727921188441,0.163508,61159.0,61158.0,0.005]
[1727921188694,0.407901,61162.0,61158.0,0.03781]
[1727921188695,0.327001,61162.0,61158.0,0.03781]
[1727921188900,0.326986,61165.0,61158.0,0.03781]
[1727921189119,0.326995,61163.0,61158.0,0.03781]
[1727921189333,0.163507,61160.0,61159.0,0.03281]
[1727921190053,0.02563539,61160.0,61159.0,0.03281]
[1727921190289,0.02563539,61160.0,61159.0,0.196318]
[1727921190753,0.16349,61166.0,61161.0,0.1635]
[1727921191192,0.16349,61166.0,61162.0,0.163499]
[1727921191385,0.16349,61166.0,61163.0,0.03281]
[1727921193511,0.163494,61164.0,61163.0,0.03281]
[1727921193710,0.00150521,61169.0,61163.0,0.03281]
[1727921193711,0.01277149,61165.0,61163.0,0.03281]
[1727921193923,0.01276953,61164.0,61163.0,0.196307]
[1727921194348,0.163488,61167.0,61163.0,0.196307]
[1727921194594,0.163488,61167.0,61163.0,0.198307]
[1727921194855,0.01277346,61166.0,61165.0,0.163492]
[1727921195104,0.00150521,61169.0,61165.0,0.43588871]
[1727921195343,0.00150521,61169.0,61168.0,0.36867361]
[1727921197657,0.00150521,61169.0,61168.0,0.38267361]
[1727921197839,0.00150521,61169.0,61168.0,0.39667361]
[1727921199627,0.00150521,61169.0,61168.0,0.63956032]
[1727921199840,0.00150521,61169.0,61168.0,0.75064995]
[1727921200291,0.00150521,61169.0,61168.0,0.77364995]
[1727921200740,0.00150521,61169.0,61168.0,0.77783218]
[1727921203564,0.00150521,61169.0,61168.0,0.87783218]
[1727921205325,0.00150521,61169.0,61168.0,0.85934255]
[1727921205556,0.00150521,61169.0,61168.0,0.87782747]
[1727921207282,0.00150521,61169.0,61168.0,0.87782543]
[1727921207488,0.00150521,61169.0,61168.0,0.87582543]
[1727921210928,0.00150521,61169.0,61168.0,0.87782543]
[1727921211403,0.00150521,61169.0,61168.0,0.87864243]
[1727921213372,0.00150521,61169.0,61168.0,1.12855438]
[1727921213582,0.24491195,61179.0,61174.0,0.66935761]
[1727921213794,0.24491195,61179.0,61174.0,0.8510272]
[1727921214015,0.24491195,61187.0,61174.0,0.8510272]
[1727921215095,0.24491195,61187.0,61174.0,0.83254432]
[1727921215315,0.24491195,61187.0,61174.0,0.85089717]
[1727921215722,0.24491195,61187.0,61174.0,0.86489717]
[1727921215915,0.24491195,61187.0,61174.0,0.85089717]
[1727921216458,0.24491195,61187.0,61174.0,0.86489717]
[1727921216859,0.24491195,61187.0,61174.0,0.86689717]
[1727921217081,0.24491195,61187.0,61174.0,0.88089717]
[1727921217482,0.24491195,61187.0,61174.0,0.86689717]
[1727921218234,0.24491195,61187.0,61174.0,0.85289717]
[1727921218427,0.24654795,61197.0,61190.0,0.196235]
[1727921218652,0.24654795,61197.0,61190.0,0.53180132]
[1727921218865,0.01462187,61191.0,61190.0,0.53180132]
[1727921219056,0.001636,61191.0,61190.0,0.53180132]
[1727921219906,0.001636,61191.0,61190.0,0.54580132]
[1727921220334,0.001636,61191.0,61190.0,0.60690132]
[1727921220552,0.001636,61191.0,61190.0,0.62529171]
[1727921220773,0.001636,61191.0,61190.0,0.63929171]
[1727921220988,0.001636,61191.0,61190.0,0.62290132]
[1727921221209,0.001636,61191.0,61190.0,0.64126628]
[1727921221435,0.001636,61191.0,61190.0,0.65963145]
[1727921221866,0.001636,61191.0,61190.0,0.67363145]
[1727921222306,0.001636,61191.0,61190.0,0.77553145]
[1727921222527,0.001636,61191.0,61190.0,0.89453145]
[1727921223702,0.001636,61191.0,61190.0,0.88053145]
[1727921223888,0.001636,61191.0,61190.0,0.88053516]
[1727921224128,0.001636,61191.0,61190.0,0.89453516]
[1727921224562,0.001636,61191.0,61190.0,0.8987627]
[1727921225217,0.001636,61191.0,61190.0,0.92815291]
[1727921225454,0.001636,61191.0,61190.0,0.90015291]
[1727921225748,0.001636,61191.0,61190.0,0.8827627]
[1727921225971,0.001636,61191.0,61190.0,0.86639774]
[1727921226185,0.001636,61191.0,61190.0,0.85239774]
[1727921226640,0.001636,61191.0,61190.0,0.77149774]
[1727921226854,0.001636,61191.0,61190.0,0.78549774]
[1727921227294,0.001636,61191.0,61190.0,0.76712886]
[1727921227513,0.001636,61191.0,61190.0,0.78543846]
[1727921228852,0.001636,61191.0,61190.0,0.78743846]
[1727921230584,0.001636,61191.0,61190.0,0.78743084]
[1727921231084,0.001636,61191.0,61190.0,0.78743018]
[1727921231332,0.001636,61191.0,61190.0,1.03234213]
[1727921231584,0.001636,61191.0,61190.0,0.87803018]
[1727921232826,0.001636,61191.0,61190.0,0.88457918]
[1727921234106,0.001636,61191.0,61190.0,0.9138613]
[1727921234539,0.001636,61191.0,61190.0,1.0863613]
[1727921235175,0.001636,61191.0,61190.0,1.10482706]
[1727921235361,0.001636,61191.0,61190.0,1.0863613]
[1727921235847,0.001636,61191.0,61190.0,1.10482706]
[1727921237104,0.001636,61191.0,61190.0,1.1049737]
[1727921238820,0.001636,61191.0,61190.0,1.13040089]
[1727921239057,0.001636,61191.0,61190.0,1.13540089]
[1727921239301,0.001636,61191.0,61190.0,1.1099737]
[1727921239562,0.001636,61191.0,61190.0,1.15870711]
[1727921240058,0.001636,61191.0,61190.0,1.14470711]
[1727921240307,0.001636,61191.0,61190.0,1.0959737]
[1727921240546,0.001636,61191.0,61190.0,1.20380723]
[1727921240769,0.001636,61197.0,61196.0,0.673719]
[1727921241023,0.001636,61197.0,61196.0,1.01428532]
[1727921241244,0.001636,61197.0,61196.0,1.17798551]
[1727921241465,0.001636,61197.0,61196.0,1.20236159]
[1727921241922,0.001636,61197.0,61196.0,1.21636159]
[1727921242178,0.001636,61197.0,61196.0,1.20098576]
[1727921242389,0.001636,61197.0,61196.0,0.9093886]
[1727921242603,0.001636,61197.0,61196.0,0.88394122]
[1727921242785,0.001636,61197.0,61196.0,0.83518116]
[1727921243481,0.001636,61197.0,61196.0,0.76898532]
[1727921243708,0.001636,61197.0,61196.0,0.83560638]
[1727921244384,0.001636,61197.0,61196.0,0.88436644]
[1727921245231,0.001636,61197.0,61196.0,0.90983735]
[1727921245437,0.001636,61197.0,61196.0,0.83560638]
[1727921246858,0.001636,61197.0,61196.0,0.8062346]
[1727921247076,0.001636,61197.0,61196.0,0.83586072]
[1727921247289,0.001636,61197.0,61196.0,0.86135057]
[1727921248326,0.001636,61197.0,61196.0,0.83586072]
[1727921249214,0.001636,61197.0,61196.0,0.78018218]
[1727921249434,0.001636,61197.0,61196.0,0.45428111]
[1727921249675,0.001636,61197.0,61196.0,0.45928111]
[1727921249912,0.001636,61197.0,61196.0,0.63166072]
[1727921250103,0.001636,61197.0,61196.0,0.6130426]
[1727921250315,0.001636,61197.0,61196.0,0.63194324]
[1727921250755,0.001636,61197.0,61196.0,0.73194324]
[1727921252552,0.001636,61197.0,61196.0,0.72694324]
[1727921252805,0.165042,61197.0,61196.0,0.10906728]
[1727921253036,0.18338863,61197.0,61196.0,0.07944644]
[1727921253260,0.18338863,61197.0,61196.0,0.06081]
[1727921253476,0.01998263,61197.0,61196.0,0.06081]
[1727921253687,0.01998263,61197.0,61196.0,0.04681]
[1727921253913,0.001636,61197.0,61196.0,0.39659861]
[1727921254125,0.001636,61197.0,61196.0,0.40117962]
[1727921254330,0.001636,61197.0,61196.0,0.40123477]
[1727921254758,0.001636,61197.0,61196.0,0.39423477]
[1727921254949,0.001636,61197.0,61196.0,0.55742148]
[1727921255168,0.001636,61197.0,61196.0,0.59223761]
[1727921256062,0.001636,61197.0,61196.0,0.58723761]
[1727921256371,0.001636,61197.0,61196.0,0.53878532]
[1727921256570,0.001636,61197.0,61196.0,0.58019028]
[1727921256783,0.001636,61197.0,61196.0,0.58819028]
[1727921257307,0.001636,61197.0,61196.0,0.58019028]
[1727921257533,0.001636,61197.0,61196.0,0.59419028]
[1727921257962,0.001636,61197.0,61196.0,0.60719028]
[1727921258173,0.001636,61197.0,61196.0,0.59319028]
[1727921258354,0.001636,61197.0,61196.0,0.60719028]
[1727921258614,0.001636,61197.0,61196.0,0.68279028]
[1727921258847,0.001636,61197.0,61196.0,0.66979028]
[1727921259059,0.001636,61197.0,61196.0,0.68379028]
[1727921259298,0.001636,61197.0,61196.0,0.66979028]
[1727921260224,0.001636,61197.0,61196.0,0.64001978]
[1727921260476,0.001636,61197.0,61196.0,0.60823492]
[1727921260977,0.001636,61197.0,61196.0,0.59839938]
[1727921261235,0.001636,61197.0,61196.0,0.58439938]
[1727921261451,0.001636,61197.0,61196.0,0.60823492]
[1727921261661,0.001636,61197.0,61196.0,0.59423492]
[1727921262109,0.001636,61197.0,61196.0,0.60823492]
[1727921262320,0.001636,61197.0,61196.0,0.60822317]
[1727921263210,0.001636,61197.0,61196.0,0.5942486]
[1727921263415,0.001636,61197.0,61196.0,0.64744046]
[1727921263618,0.001636,61197.0,61196.0,0.66144046]
[1727921264109,0.001636,61197.0,61196.0,0.63344046]
[1727921264515,0.001636,61197.0,61196.0,0.67191313]
[1727921265160,0.001636,61197.0,61196.0,0.68591313]
[1727921266235,0.001636,61197.0,61196.0,0.68166661]
[1727921266433,0.001636,61197.0,61196.0,0.66302461]
[1727921266647,0.001636,61197.0,61196.0,0.68166291]
[1727921267276,0.001636,61197.0,61196.0,0.6082449]
[1727921267499,0.083936,61197.0,61196.0,0.15828564]
[1727921267740,0.247342,61197.0,61196.0,0.06081]
[1727921267957,0.35977859,61197.0,61196.0,0.028]
[1727921268833,0.35977859,61197.0,61196.0,0.014]
[1727921269352,0.35977859,61197.0,61196.0,0.02]
[1727921270000,0.35977859,61197.0,61196.0,0.006]
[1727921270451,0.35977859,61197.0,61196.0,0.014]
[1727921270912,0.38539839,61197.0,61196.0,0.014]
[1727921275282,0.35977859,61197.0,61196.0,0.014]
[1727921275945,0.27747859,61197.0,61196.0,0.04681]
[1727921276358,0.27747859,61197.0,61196.0,0.0679149]
[1727921276576,0.11407259,61197.0,61196.0,0.0679149]
[1727921277070,0.27747859,61197.0,61196.0,0.0679149]
[1727921278419,0.30309756,61197.0,61196.0,0.0679149]
[1727921279139,0.20319756,61197.0,61196.0,0.0679149]
[1727921280617,0.20319756,61197.0,61196.0,0.04681]
[1727921281229,0.20319756,61197.0,61196.0,0.014]
[1727921281440,0.37039756,61197.0,61196.0,0.014]
[1727921284826,0.34477859,61197.0,61196.0,0.014]
[1727921291137,0.01417259,61197.0,61196.0,0.04681]
[1727921291607,0.01417259,61197.0,61196.0,0.210219]
[1727921291799,0.01417259,61197.0,61196.0,0.04681]
[1727921292023,0.001636,61197.0,61196.0,0.04681]
[1727921292254,0.01397112,61197.0,61196.0,0.04681]
[1727921292906,0.03958938,61197.0,61196.0,0.04681]
[1727921293152,0.03958938,61197.0,61196.0,0.210219]
[1727921293375,0.02725426,61197.0,61196.0,0.210219]
[1727921296025,0.001636,61197.0,61196.0,0.286419]
[1727921296471,0.001636,61197.0,61196.0,0.30528465]
[1727921297181,0.001636,61197.0,61196.0,0.22908465]
[1727921297403,0.001636,61197.0,61196.0,0.210219]
[1727921301499,0.001636,61197.0,61196.0,0.204219]
[1727921301960,0.001636,61197.0,61196.0,0.48447359]
[1727921302175,0.001636,61197.0,61196.0,0.57147359]
[1727921302618,0.001636,61197.0,61196.0,0.56347359]
[1727921302835,0.001636,61197.0,61196.0,0.56047359]
[1727921303256,0.001636,61197.0,61196.0,0.56547359]
[1727921303465,0.001636,61197.0,61196.0,0.46727359]
[1727921303692,0.001636,61197.0,61196.0,0.45627359]
[1727921304764,0.001636,61197.0,61196.0,0.46627359]
[1727921305002,0.001636,61197.0,61196.0,0.47727359]
[1727921305223,0.001636,61197.0,61196.0,0.46724483]
[1727921305434,0.001636,61197.0,61196.0,0.45624483]
[1727921305650,0.001636,61197.0,61196.0,0.47024483]
[1727921306074,0.001636,61197.0,61196.0,0.46924483]
[1727921306542,0.001636,61197.0,61196.0,0.47024483]
[1727921307492,0.001636,61197.0,61196.0,0.210219]
[1727921307735,0.001636,61197.0,61196.0,0.220219]
[1727921308221,0.001636,61197.0,61196.0,0.196219]
[1727921308480,0.001636,61197.0,61196.0,0.223219]
[1727921308731,0.001636,61197.0,61196.0,0.210219]
[1727921308975,0.001636,61197.0,61196.0,0.206219]
[1727921309182,0.001636,61197.0,61196.0,0.207219]
[1727921309603,0.001636,61197.0,61196.0,0.215219]
[1727921309817,0.001636,61197.0,61196.0,0.204219]
[1727921310461,0.001636,61197.0,61196.0,0.214219]
[1727921310891,0.001636,61197.0,61196.0,0.206219]
[1727921311344,0.001636,61197.0,61196.0,0.215219]
[1727921315365,0.001636,61197.0,61196.0,0.23406053]
[1727921315810,0.001636,61197.0,61196.0,0.215219]
[1727921316026,0.001636,61197.0,61196.0,0.23406364]
[1727921316242,0.001636,61197.0,61196.0,0.215219]
[1727921318519,0.001636,61197.0,61196.0,0.67287329]
[1727921318736,0.001636,61197.0,61196.0,0.77259686]
[1727921319002,0.001636,61197.0,61196.0,0.72605709]
[1727921319229,0.001636,61197.0,61196.0,0.72601654]
[1727921319442,0.001636,61197.0,61196.0,0.71601654]
[1727921319678,0.001636,61197.0,61196.0,0.70701654]
[1727921319907,0.001636,61197.0,61196.0,0.73501654]
[1727921320144,0.001636,61197.0,61196.0,0.72101654]
[1727921320448,0.001636,61197.0,61196.0,0.70701654]
[1727921320710,0.001636,61197.0,61196.0,0.82938148]
[1727921321606,0.001636,61197.0,61196.0,1.08829343]
[1727921321854,0.001636,61205.0,61204.0,0.66477761]
[1727921322033,0.001636,61205.0,61204.0,0.93355525]
[1727921322255,0.001636,61205.0,61204.0,0.87935349]